fUSD/lending_fUSD_20250717
["ID","MTS","AMOUNT","RATE_DAILY","PERIOD"]
[372625279,1752717033377,-284.42150978,0.000183,5]
[372625280,1752717033388,-523.81499823,0.000183,5]
[372625281,1752717033400,-675.92609575,0.000183,5]
[372625282,1752717033412,-1018.09572268,0.000183,5]
[372625283,1752717033422,-133.98678197,0.000183,4]
[372625284,1752717033434,-166.00321803,0.000183,4]
[372625285,1752717033444,-2306.66558358,0.000183,2]
[372625286,1752717033460,-1714.09441642,0.000183,2]
[372625287,1752717033470,-927.43,0.000183,2]
[372625288,1752717033480,-1628.82,0.000183,2]
[372625289,1752717033490,-164.63,0.000183,2]
[372625290,1752717033500,-477.81,0.000183,2]
[372625291,1752717033510,-218.04805431,0.000183,2]
[372625292,1752717033520,-441.11812734,0.000183,2]
[372625293,1752717033530,-2346.58,0.000183,2]
[372625294,1752717033539,-6800.0,0.000183,6]
[372625295,1752717033549,-168.0,0.00018306,2]
[372625296,1752717033559,-151.0,0.00018316,2]
[372625297,1752717033568,-151.0,0.00018316,2]
[372625298,1752717033581,-1466.333981,0.00018325,2]
[372625299,1752717033591,-1000.0,0.00018329,2]
[372625300,1752717033601,-77.94418813,0.00018333,2]
[372625301,1752717037741,-152.1271478,0.000183,2]
[372625302,1752717037753,-728.75333524,0.000183,2]
[372625303,1752717037863,-14450.91135739,0.000183,2]
[372625304,1752717037873,-151.0,0.00018316,2]
[372625305,1752717037883,-140.10386612,0.00018333,2]
[372625306,1752717037893,-441.1181273,0.00018343,2]
[372625307,1752717037904,-4181.034672,0.00018344,2]
[372625308,1752717037914,-218.04805425,0.00018367,2]
[372625309,1752717037923,-200.0,0.00018374,2]
[372625310,1752717037933,-3653.05428078,0.00018382,2]
[372625311,1752717037943,-256.65,0.00018383,2]
[372625312,1752717037954,-441.1181273,0.00018386,2]
[372625313,1752717037964,-520.0819104,0.00018398,2]
[372625314,1752717037975,-460.05561856,0.00018398,2]
[372625315,1752717037984,-500.0,0.00018398,2]
[372625316,1752717037994,-523.06494964,0.00018398,2]
[372625317,1752717038004,-4335.73295486,0.00018399,2]
[372625318,1752717038014,-166.735,0.00018399,2]
[372625319,1752717038026,-3851.949,0.00018399,2]
[372625320,1752717038037,-20631.77696528,0.00018399,2]
[372625321,1752717038047,-157.4006901,0.000184,2]
[372625322,1752717038058,-34347.4773,0.000184,2]
[372625323,1752717038068,-107166.56407092,0.000184,2]
[372625324,1752717038083,-56119.16182908,0.000184,2]
[372625325,1752717038093,-1000.0,0.000184,2]
[372625326,1752717038103,-218.04805425,0.000184,2]
[372625327,1752717038113,-7875.79813157,0.000184,6]
[372625328,1752717038125,-388.65265175,0.000184,6]
[372625329,1752717038137,-835.54921668,0.000184,6]
[372625330,1752717038147,-190.45078332,0.00018409,2]
[372625331,1752717038198,-4816.94558558,0.00018409,2]
[372625332,1752717038277,-8969.96923551,0.00018409,2]
[372625334,1752717038287,-1010.68143582,0.00018419,2]
[372625336,1752717038296,-20631.77696524,0.00018421,2]
[372625337,1752717038306,-441.1181273,0.00018429,2]
[372625341,1752717038316,-537.82464912,0.0001843,2]
[372625343,1752717038325,-465.8954165,0.00018433,2]
[372625344,1752717038340,-218.04805425,0.00018433,2]
[372625346,1752717038350,-20631.77696524,0.00018444,2]
[372625348,1752717038363,-600.0,0.00018445,2]
[372625351,1752717038373,-600.0,0.00018445,2]
[372625353,1752717038383,-600.0,0.00018445,2]
[372625354,1752717038394,-600.0,0.00018445,2]
[372625357,1752717038404,-600.0,0.00018445,2]
[372625359,1752717038414,-4496.15507419,0.00018454,2]
[372625360,1752717038424,-465.89541646,0.00018461,2]
[372625362,1752717038435,-20631.77696524,0.00018466,2]
[372625365,1752717038445,-218.04805425,0.00018467,2]
[372625366,1752717038454,-235.64822898,0.00018467,2]
[372625368,1752717038464,-441.1181273,0.00018471,2]
[372625369,1752717038474,-500.0,0.00018473,2]
[372625370,1752717038483,-500.0,0.00018473,2]
[372625371,1752717038495,-500.0,0.00018473,2]
[372625372,1752717038504,-13977.36560441,0.00018482,2]
[372625373,1752717038514,-13977.36560441,0.00018487,2]
[372625374,1752717038524,-20631.77696524,0.00018488,2]
[372625375,1752717038534,-465.89541646,0.00018489,2]
[372625376,1752717038544,-300.0,0.00018499,2]
[372625377,1752717038553,-159.331,0.00018499,2]
[372625378,1752717038563,-300.0,0.00018499,2]
[372625379,1752717038573,-666.0,0.00018499,2]
[372625380,1752717038587,-5000.0,0.00018499,2]
[372625382,1752717038597,-5000.0,0.00018499,2]
[372625383,1752717038607,-5000.0,0.00018499,2]
[372625385,1752717038616,-3953.52899989,0.00018499,2]
[372625387,1752717038626,-196.84617881,0.00018499,2]
[372625389,1752717038636,-500.0,0.00018499,2]
[372625391,1752717038646,-500.0,0.00018499,2]
[372625393,1752717038655,-215.51401106,0.00018499,2]
[372625395,1752717038665,-500.0,0.00018499,2]
[372625397,1752717038674,-500.0,0.00018499,2]
[372625399,1752717038683,-500.0,0.00018499,2]
[372625401,1752717038693,-500.0,0.00018499,2]
[372625403,1752717038703,-227.43010754,0.00018499,2]
[372625405,1752717038713,-166.66666666,0.000185,2]
[372625407,1752717038723,-218.04805425,0.000185,2]
[372625409,1752717038733,-11400.0,0.000185,6]
[372625411,1752717038742,-4662.51281194,0.00018509,2]
[372625413,1752717038752,-1752.47457,0.0001851,2]
[372625415,1752717038761,-5222.64101,0.0001851,2]
[372625417,1752717038771,-20631.77696524,0.00018511,2]
[372625419,1752717038780,-441.1181273,0.00018514,2]
[372625421,1752717038789,-465.89541646,0.00018517,2]
[372625423,1752717038798,-20631.77696524,0.00018533,2]
[372625425,1752717038807,-218.04805425,0.00018533,2]
[372625427,1752717038816,-15418.12,0.00018533,2]
[372625429,1752717038826,-9999.99,0.00018533,2]
[372625431,1752717038837,-462.56567464,0.00018543,2]
[372625433,1752717038846,-465.89541646,0.00018544,2]
[372625435,1752717038856,-2000.0,0.0001855,2]
[372625437,1752717038866,-500.0,0.0001855,2]
[372625440,1752717038877,-500.0,0.0001855,2]
[372625442,1752717038887,-200.0,0.0001855,2]
[372625444,1752717038897,-20631.77696524,0.00018555,2]
[372625446,1752717038906,-441.1181273,0.00018557,2]
[372625448,1752717038916,-4835.02578598,0.00018564,2]
[372625450,1752717038925,-218.04805425,0.00018567,2]
[372625451,1752717038935,-462.56567463,0.00018572,2]
[372625453,1752717038946,-465.89541646,0.00018572,2]
[372625455,1752717038956,-277.75056853,0.00018573,2]
[372625457,1752717038965,-500.0,0.00018573,2]
[372625459,1752717038975,-20631.77696524,0.00018578,2]
[372625461,1752717038984,-837.15634541,0.00018588,2]
[372625463,1752717038994,-28705.15407451,0.0001859,2]
[372625465,1752717039004,-150.0,0.000186,2]
[372625467,1752717039013,-913.44,0.000186,2]
[372625469,1752717039023,-327.79,0.000186,2]
[372625471,1752717039032,-814.69,0.000186,2]
[372625473,1752717039042,-171.47,0.000186,2]
[372625476,1752717039052,-1085.82,0.000186,2]
[372625478,1752717039062,-5000.0,0.000186,2]
[372625480,1752717039071,-157.4006901,0.000186,2]
[372625481,1752717039083,-465.89541646,0.000186,2]
[372625484,1752717039093,-218.04805425,0.000186,2]
[372625486,1752717039103,-186.67492732,0.000186,3]
[372625488,1752717039112,-20631.77696524,0.000186,2]
[372625489,1752717039121,-160.43554866,0.000186,2]
[372625491,1752717039130,-462.56567463,0.000186,2]
[372625493,1752717039139,-441.1181273,0.000186,2]
[372625495,1752717039150,-537.00452196,0.000186,2]
[372625497,1752717039160,-2200.0,0.000186,6]
[372625499,1752717039169,-1000.0,0.00018606,2]
[372625501,1752717039179,-1000.0,0.00018606,2]
[372625503,1752717039188,-1000.0,0.00018606,2]
[372625505,1752717039197,-1000.0,0.00018606,2]
[372625507,1752717039207,-1000.0,0.00018606,2]
[372625509,1752717039216,-1000.0,0.00018606,2]
[372625511,1752717039226,-1000.0,0.00018606,2]
[372625513,1752717039235,-1000.0,0.00018606,2]
[372625515,1752717039245,-1000.0,0.00018606,2]
[372625532,1752717039621,-1000.0,0.00018606,2]
[372625533,1752717039633,-1000.0,0.00018606,2]
[372625534,1752717039643,-1000.0,0.00018606,2]
[372625535,1752717039652,-1000.0,0.00018606,2]
[372625536,1752717039661,-1000.0,0.00018606,2]
[372625537,1752717039671,-427.8466,0.00018606,2]
[372625538,1752717039681,-1000.0,0.00018606,2]
[372625539,1752717039690,-1000.0,0.00018606,2]
[372625540,1752717039700,-1000.0,0.00018606,2]
[372625541,1752717039710,-1000.0,0.00018606,2]
[372625542,1752717039719,-1000.0,0.00018606,2]
[372625543,1752717039729,-1000.0,0.00018606,2]
[372625544,1752717039738,-1000.0,0.00018606,2]
[372625545,1752717039748,-1000.0,0.00018606,2]
[372625547,1752717039758,-1000.0,0.00018606,2]
[372625548,1752717039768,-1000.0,0.00018606,2]
[372625549,1752717039777,-1000.0,0.00018606,2]
[372625550,1752717039786,-1000.0,0.00018606,2]
[372625551,1752717039796,-1000.0,0.00018606,2]
[372625552,1752717039805,-1000.0,0.00018606,2]
[372625553,1752717039814,-1000.0,0.00018606,2]
[372625554,1752717039822,-1000.0,0.00018606,2]
[372625555,1752717039834,-1000.0,0.00018606,2]
[372625557,1752717039843,-1000.0,0.00018606,2]
[372625558,1752717039852,-1000.0,0.00018606,2]
[372625559,1752717039861,-1000.0,0.00018606,2]
[372625560,1752717039871,-1000.0,0.00018606,2]
[372625561,1752717039880,-1000.0,0.00018606,2]
[372625562,1752717039889,-1000.0,0.00018606,2]
[372625563,1752717039898,-1000.0,0.00018606,2]
[372625564,1752717039907,-1000.0,0.00018606,2]
[372625565,1752717039917,-1000.0,0.00018606,2]
[372625566,1752717039926,-1000.0,0.00018606,2]
[372625567,1752717039937,-1000.0,0.00018606,2]
[372625568,1752717039946,-1000.0,0.00018606,2]
[372625569,1752717039955,-1000.0,0.00018606,2]
[372625570,1752717039964,-1000.0,0.00018606,2]
[372625571,1752717039975,-1000.0,0.00018606,2]
[372625572,1752717039984,-1000.0,0.00018606,2]
[372625573,1752717039993,-1000.0,0.00018606,2]
[372625574,1752717040002,-1000.0,0.00018606,2]
[372625575,1752717040012,-1000.0,0.00018606,2]
[372625576,1752717040021,-1000.0,0.00018606,2]
[372625577,1752717040030,-1000.0,0.00018606,2]
[372625578,1752717040040,-1000.0,0.00018606,2]
[372625579,1752717040050,-1000.0,0.00018606,2]
[372625580,1752717040061,-1000.0,0.00018606,2]
[372625581,1752717040071,-1000.0,0.00018606,2]
[372625582,1752717040083,-1000.0,0.00018606,2]
[372625583,1752717040094,-1000.0,0.00018606,2]
[372625584,1752717040103,-1000.0,0.00018606,2]
[372625585,1752717040114,-1000.0,0.00018606,2]
[372625586,1752717040126,-1000.0,0.00018606,2]
[372625587,1752717040135,-1000.0,0.00018606,2]
[372625588,1752717040145,-1000.0,0.00018606,2]
[372625589,1752717040154,-1000.0,0.00018606,2]
[372625590,1752717040164,-1000.0,0.00018606,2]
[372625591,1752717040173,-1000.0,0.00018606,2]
[372625592,1752717040183,-1000.0,0.00018606,2]
[372625593,1752717040192,-1000.0,0.00018606,2]
[372625594,1752717040201,-1000.0,0.00018606,2]
[372625595,1752717040210,-1000.0,0.00018606,2]
[372625596,1752717040220,-1000.0,0.00018606,2]
[372625597,1752717040229,-1000.0,0.00018606,2]
[372625598,1752717040239,-1000.0,0.00018606,2]
[372625599,1752717040248,-1000.0,0.00018606,2]
[372625600,1752717040258,-1000.0,0.00018606,2]
[372625601,1752717040269,-1000.0,0.00018606,2]
[372625602,1752717040279,-1000.0,0.00018606,2]
[372625603,1752717040288,-1000.0,0.00018606,2]
[372625604,1752717040298,-1000.0,0.00018606,2]
[372625605,1752717040307,-1000.0,0.00018606,2]
[372625606,1752717040317,-1000.0,0.00018606,2]
[372625607,1752717040327,-1000.0,0.00018606,2]
[372625608,1752717040340,-1000.0,0.00018606,2]
[372625609,1752717040354,-1000.0,0.00018606,2]
[372625610,1752717040364,-1000.0,0.00018606,2]
[372625611,1752717040374,-1000.0,0.00018606,2]
[372625612,1752717040383,-1000.0,0.00018606,2]
[372625613,1752717040394,-1000.0,0.00018606,2]
[372625614,1752717040404,-1000.0,0.00018606,2]
[372625615,1752717040413,-1000.0,0.00018606,2]
[372625616,1752717040423,-1000.0,0.00018606,2]
[372625617,1752717040434,-1000.0,0.00018606,2]
[372625618,1752717040444,-1000.0,0.00018606,2]
[372625619,1752717040454,-719.0799,0.00018606,2]
[372625620,1752717040464,-5013.92174006,0.00018619,2]
[372625621,1752717040474,-1752.47457,0.0001862,2]
[372625622,1752717040484,-43159.37,0.0001863,2]
[372625623,1752717040494,-250.0,0.00018643,2]
[372625624,1752717040504,-204.23,0.00018651,2]
[372625625,1752717040513,-526.14634518,0.00018673,2]
[372625626,1752717040523,-502.2829511,0.00018673,2]
[372625627,1752717040533,-169.06122488,0.00018673,2]
[372625628,1752717040542,-500.0,0.00018673,2]
[372625629,1752717040552,-500.0,0.00018673,2]
[372625630,1752717040563,-324.09367395,0.00018673,2]
[372625631,1752717040573,-500.0,0.00018673,2]
[372625632,1752717040587,-500.0,0.00018673,2]
[372625633,1752717040598,-500.0,0.00018673,2]
[372625634,1752717040608,-500.49150054,0.00018673,2]
[372625635,1752717040618,-500.0,0.00018673,2]
[372625636,1752717040627,-500.0,0.00018673,2]
[372625637,1752717040637,-500.0,0.00018673,2]
[372625638,1752717040647,-500.0,0.00018673,2]
[372625639,1752717040657,-500.61459851,0.00018673,2]
[372625640,1752717040669,-167.67298565,0.00018673,2]
[372625641,1752717040680,-500.0,0.00018673,2]
[372625642,1752717040691,-210.57882026,0.00018673,2]
[372625643,1752717040700,-500.0,0.00018673,2]
[372625644,1752717040710,-500.0,0.00018673,2]
[372625645,1752717040720,-500.0,0.00018673,2]
[372625646,1752717040729,-501.01890802,0.00018673,2]
[372625647,1752717040739,-486.82863474,0.00018673,2]
[372625648,1752717040749,-307.07627622,0.00018673,2]
[372625649,1752717040759,-500.0,0.00018673,2]
[372625650,1752717040768,-500.0,0.00018673,2]
[372625651,1752717040778,-500.0,0.00018673,2]
[372625652,1752717040787,-500.0,0.00018673,2]
[372625653,1752717040797,-500.0,0.00018673,2]
[372625654,1752717040806,-500.0,0.00018673,2]
[372625655,1752717040815,-500.0,0.00018673,2]
[372625656,1752717040825,-500.0,0.00018673,2]
[372625657,1752717040837,-500.32476737,0.00018673,2]
[372625658,1752717040847,-503.10884748,0.00018673,2]
[372625659,1752717040856,-160.34949549,0.00018673,2]
[372625660,1752717040866,-500.0,0.00018673,2]
[372625661,1752717040875,-500.0,0.00018673,2]
[372625662,1752717040884,-501.61916977,0.00018673,2]
[372625663,1752717040894,-500.0,0.00018673,2]
[372625664,1752717040903,-502.82554035,0.00018673,2]
[372625665,1752717040912,-5199.43684444,0.00018674,2]
[372625666,1752717040922,-756.87124938,0.00018689,2]
[372625667,1752717040932,-756.87124938,0.00018689,2]
[372625668,1752717040941,-756.87124938,0.0001869,2]
[372625669,1752717040951,-1432201.45611328,0.0001869,2]
[372625670,1752717040960,-170805.3637858,0.00018691,2]
[372625671,1752717040970,-4100.3150348,0.00018691,2]
[372625672,1752717040979,-4495.6904735,0.00018691,2]
[372625673,1752717040989,-113644.8164334,0.00018691,2]
[372625674,1752717040999,-8476.0539305,0.00018691,2]
[372625675,1752717041008,-671.02542739,0.00018699,2]
[372625676,1752717041018,-1000.0,0.00018699,2]
[372625677,1752717041027,-300.0,0.00018699,2]
[372625678,1752717041036,-300.0,0.00018699,2]
[372625679,1752717041045,-300.0,0.00018699,2]
[372625680,1752717041055,-607.0,0.00018699,2]
[372625681,1752717041064,-500.0,0.00018699,2]
[372625682,1752717041074,-500.0,0.00018699,2]
[372625683,1752717041086,-150.0,0.00018699,2]
[372625684,1752717041096,-500.0,0.00018699,2]
[372625685,1752717041105,-676.0,0.00018699,2]
[372625686,1752717041114,-500.0,0.00018699,2]
[372625687,1752717041124,-150.0,0.00018699,2]
[372625688,1752717041133,-261.7663646,0.00018699,2]
[372625689,1752717041143,-500.0,0.00018699,2]
[372625690,1752717041152,-500.0,0.00018699,2]
[372625691,1752717041162,-500.0,0.00018699,2]
[372625692,1752717041172,-266.33933359,0.00018699,2]
[372625693,1752717041182,-500.0,0.00018699,2]
[372625694,1752717041193,-500.0,0.00018699,2]
[372625695,1752717041202,-4194.0,0.00018699,2]
[372625696,1752717041212,-150.0,0.00018699,2]
[372625697,1752717041221,-426.0,0.00018699,2]
[372625698,1752717041230,-1886.0,0.00018699,2]
[372625699,1752717041240,-151.00974049,0.00018699,2]
[372625700,1752717041249,-151.38534347,0.00018699,2]
[372625701,1752717041259,-500.0,0.00018699,2]
[372625702,1752717041268,-150.76372794,0.00018699,2]
[372625703,1752717041277,-500.0,0.00018699,2]
[372625704,1752717041287,-500.0,0.00018699,2]
[372625705,1752717041296,-150.0,0.00018699,2]
[372625706,1752717041306,-500.0,0.00018699,2]
[372625707,1752717041315,-150.0,0.00018699,2]
[372625708,1752717041325,-500.0,0.00018699,2]
[372625709,1752717041338,-500.0,0.00018699,2]
[372625710,1752717041348,-150.0,0.00018699,2]
[372625711,1752717041359,-500.0,0.00018699,2]
[372625712,1752717041369,-150.0,0.00018699,2]
[372625713,1752717041379,-1264.0,0.00018699,2]
[372625714,1752717041388,-2000.0,0.00018699,2]
[372625715,1752717041398,-2000.0,0.00018699,2]
[372625716,1752717041407,-2000.0,0.00018699,2]
[372625717,1752717041417,-1101.0,0.00018699,2]
[372625718,1752717041426,-67391.05716725,0.000187,2]
[372625719,1752717041436,-2628035.33281439,0.000187,2]
[372625720,1752717041446,-289.57274719,0.000187,2]
[372625721,1752717041457,-12023545.31960002,0.000187,2]
[372625722,1752717041467,-151.0,0.000187,2]
[372625723,1752717041478,-151.0,0.000187,2]
[372625724,1752717041488,-151.769364,0.000187,2]
[372625725,1752717041497,-151.0,0.000187,2]
[372625726,1752717041507,-151.0,0.000187,2]
[372625727,1752717041516,-151.0,0.000187,2]
[372625728,1752717041526,-157.930547,0.000187,2]
[372625729,1752717041536,-151.0,0.000187,2]
[372625730,1752717041545,-151.0,0.000187,2]
[372625731,1752717041555,-151.0,0.000187,2]
[372625732,1752717041564,-151.0,0.000187,2]
[372625733,1752717041574,-151.0,0.000187,2]
[372625734,1752717041586,-151.0,0.000187,2]
[372625735,1752717041595,-151.0,0.000187,2]
[372625736,1752717041604,-151.0,0.000187,2]
[372625737,1752717041614,-151.0,0.000187,2]
[372625738,1752717041623,-151.0,0.000187,2]
[372625739,1752717041633,-151.0,0.000187,2]
[372625740,1752717041642,-151.0,0.000187,2]
[372625741,1752717041651,-151.0,0.000187,2]
[372625742,1752717041660,-151.0,0.000187,2]
[372625743,1752717041670,-500.0,0.000187,2]
[372625744,1752717041679,-500.0,0.000187,2]
[372625745,1752717041689,-500.0,0.000187,2]
[372625746,1752717041698,-500.0,0.000187,2]
[372625747,1752717041708,-504.921947,0.000187,2]
[372625748,1752717041718,-200.0,0.000187,2]
[372625749,1752717041728,-150.0,0.000187,2]
[372625750,1752717041737,-150.0,0.000187,2]
[372625751,1752717041747,-150.0,0.000187,2]
[372625752,1752717041756,-150.0,0.000187,2]
[372625753,1752717041766,-150.0,0.000187,2]
[372625754,1752717041775,-200.0,0.000187,2]
[372625755,1752717041784,-151.0,0.000187,2]
[372625756,1752717041794,-284.91408756,0.000187,2]
[372625757,1752717041803,-1758.0,0.000187,2]
[372625758,1752717041812,-2200.0,0.000187,6]
[372625759,1752717041822,-1000.0,0.000187,2]
[372625760,1752717041836,-1000.0,0.000187,2]
[372625761,1752717041846,-1000.0,0.000187,2]
[372625762,1752717041855,-1000.0,0.000187,2]
[372625763,1752717041865,-1000.0,0.000187,2]
[372625764,1752717041875,-1000.0,0.000187,2]
[372625765,1752717041885,-1000.0,0.000187,2]
[372625766,1752717041894,-1000.0,0.000187,2]
[372625767,1752717041903,-1000.0,0.000187,2]
[372625768,1752717041913,-1000.0,0.000187,2]
[372625769,1752717041922,-1000.0,0.000187,2]
[372625770,1752717041932,-1000.0,0.000187,2]
[372625771,1752717041941,-1000.0,0.000187,2]
[372625772,1752717041951,-1000.0,0.000187,2]
[372625773,1752717041960,-1000.0,0.000187,2]
[372625774,1752717041971,-825.29802807,0.000187,2]
[372625775,1752717041980,-1900.0,0.00018717,2]
[372625776,1752717041990,-800.0,0.00018717,2]
[372625777,1752717042001,-2200.0,0.00018717,2]
[372625778,1752717042010,-500.0,0.00018727,2]
[372625779,1752717042020,-5391.81600769,0.00018729,2]
[372625780,1752717042029,-182.20237763,0.0001874,2]
[372625781,1752717042039,-500.0,0.00018754,2]
[372625782,1752717042166,-652.0,0.00018758,2]
[372625783,1752717042176,-168.0,0.00018776,2]
[372625784,1752717042185,-500.0,0.00018781,2]
[372625785,1752717042195,-652.0,0.00018782,2]
[372625786,1752717042204,-5591.31319997,0.00018784,2]
[372625787,1752717042214,-508.0,0.00018785,2]
[372625788,1752717042223,-507.99994,0.00018785,2]
[372625789,1752717042232,-1000.0,0.000188,2]
[372625790,1752717042242,-2200.0,0.000188,6]
[372625791,1752717042251,-500.0,0.00018809,2]
[372625792,1752717042260,-300.0,0.00018819,2]
[372625793,1752717042269,-1002.42700545,0.00018821,2]
[372625794,1752717042279,-508.65148447,0.00018821,2]
[372625795,1752717042287,-500.0,0.00018836,2]
[372625796,1752717042296,-152.6740919,0.00018837,2]
[372625797,1752717042307,-221.88543242,0.00018837,2]
[372625798,1752717042316,-600.0,0.00018837,2]
[372625799,1752717042326,-5798.19178837,0.00018839,2]
[372625800,1752717042338,-652.0,0.00018852,2]
[372625801,1752717042349,-256.65,0.00018858,2]
[372625802,1752717042359,-652.0,0.00018862,2]
[372625803,1752717042369,-349.8691346,0.00018862,2]
[372625804,1752717042378,-500.0,0.00018864,2]
[372625805,1752717042387,-1752.47457,0.0001887,2]
[372625806,1752717042396,-1655.0,0.00018881,2]
[372625807,1752717042406,-200.0,0.00018887,2]
[372625808,1752717042415,-200.0,0.00018887,2]
[372625809,1752717042424,-500.0,0.00018891,2]
[372625810,1752717042435,-6012.72488454,0.00018894,2]
[372625811,1752717042444,-1000.0,0.000189,2]
[372625812,1752717042453,-2200.0,0.000189,6]
[372625813,1752717042462,-1764.37112039,0.000189,2]
[372625814,1752717042472,-902.89405331,0.000189,2]
[372625815,1752717042481,-500.0,0.00018918,2]
[372625816,1752717042491,-1655.0,0.00018933,2]
[372625817,1752717042501,-14791.08421707,0.00018934,2]
[372625818,1752717042510,-1764.3711203,0.00018934,2]
[372625819,1752717042520,-500.0,0.00018946,2]
[372625820,1752717042530,-5888.0,0.00018948,2]
[372625821,1752717042539,-6235.19570527,0.00018949,2]
[372625822,1752717042549,-652.0,0.00018952,2]
[372625823,1752717042558,-366.44,0.00018964,2]
[372625824,1752717042567,-1764.3711203,0.00018969,2]
[372625825,1752717042577,-607.0,0.00018973,2]
[372625826,1752717042591,-500.0,0.00018973,2]
[372625827,1752717042600,-500.0,0.00018973,2]
[372625828,1752717042610,-500.0,0.00018973,2]
[372625829,1752717042619,-676.0,0.00018973,2]
[372625830,1752717042628,-500.0,0.00018973,2]
[372625831,1752717042638,-500.0,0.00018973,2]
[372625832,1752717042648,-500.0,0.00018973,2]
[372625833,1752717042657,-500.0,0.00018973,2]
[372625834,1752717042667,-500.0,0.00018973,2]
[372625835,1752717042676,-4194.0,0.00018973,2]
[372625836,1752717042685,-202.83837108,0.00018973,2]
[372625837,1752717042694,-426.0,0.00018973,2]
[372625838,1752717042703,-1886.0,0.00018973,2]
[372625839,1752717042713,-500.0,0.00018973,2]
[372625840,1752717042722,-500.0,0.00018973,2]
[372625841,1752717042731,-500.0,0.00018973,2]
[372625842,1752717042741,-158.97039989,0.00018973,2]
[372625843,1752717042750,-500.0,0.00018973,2]
[372625844,1752717042759,-500.0,0.00018973,2]
[372625845,1752717042768,-500.0,0.00018973,2]
[372625846,1752717042779,-500.0,0.00018973,2]
[372625848,1752717042788,-1264.0,0.00018973,2]
[372625849,1752717042797,-151.0,0.00018973,2]
[372625851,1752717042807,-151.0,0.00018973,2]
[372625852,1752717042816,-500.0,0.00018973,2]
[372625853,1752717042825,-150.0,0.00018974,2]
[372625854,1752717042838,-150.0,0.00018974,2]
[372625855,1752717042847,-150.0,0.00018974,2]
[372625856,1752717042856,-251.87989716,0.00018974,2]
[372625857,1752717042865,-150.0,0.00018974,2]
[372625858,1752717042875,-151.0,0.00018974,2]
[372625859,1752717042884,-151.0,0.00018974,2]
[372625860,1752717042894,-151.0,0.00018974,2]
[372625861,1752717042903,-151.0,0.00018974,2]
[372625862,1752717042913,-151.0,0.00018974,2]
[372625863,1752717042922,-151.0,0.00018974,2]
[372625864,1752717042931,-151.0,0.00018974,2]
[372625865,1752717042941,-151.0,0.00018974,2]
[372625866,1752717042950,-151.0,0.00018974,2]
[372625867,1752717042959,-151.0,0.00018974,2]
[372625868,1752717042969,-151.0,0.00018974,2]
[372625869,1752717042978,-500.0,0.00018974,2]
[372625870,1752717042987,-500.0,0.00018974,2]
[372625871,1752717042997,-504.921947,0.00018974,2]
[372625872,1752717043006,-1173.68,0.00018989,2]
[372625873,1752717043015,-30287.11938916,0.00019,2]
[372625874,1752717043024,-160.76091,0.00019,2]
[372625875,1752717043034,-3141.25411918,0.00019,2]
[372625876,1752717043043,-151.0,0.00019,2]
[372625877,1752717043053,-151.0,0.00019,2]
[372625878,1752717043062,-151.0,0.00019,2]
[372625879,1752717043072,-151.0,0.00019,2]
[372625880,1752717043084,-151.0,0.00019,2]
[372625881,1752717043094,-151.0,0.00019,2]
[372625882,1752717043103,-151.0,0.00019,2]
[372625883,1752717043112,-151.0,0.00019,2]